bitfinex/quotes_SOLUSD_20251118
["timestamp","ask_amount","ask_price","bid_price","bid_amount"]
[1763470612303,16.93209522,138.5,138.44,0.2]
[1763470612304,9.78882769,138.46,138.44,0.2]
[1763470612479,2.14326753,138.45,138.44,0.2]
[1763470612683,2.84326753,138.45,138.44,0.2]
[1763470612886,17.13209522,138.45,138.44,0.2]
[1763470613597,12.63209522,138.45,138.44,0.2]
[1763470613999,9.78882769,138.44,138.41,0.2]
[1763470614193,11.93209522,138.42,138.41,0.2]
[1763470614579,12.63209522,138.42,138.41,0.2]
[1763470615280,11.93209522,138.42,138.41,0.2]
[1763470615696,12.63209522,138.42,138.41,0.2]
[1763470615901,10.48882769,138.42,138.41,0.2]
[1763470616099,12.63209522,138.42,138.41,0.2]
[1763470616586,10.48882769,138.42,138.41,0.2]
[1763470616786,12.63209522,138.42,138.41,0.2]
[1763470617305,11.93209522,138.42,138.41,0.92]
[1763470617709,18.12096,138.47,138.41,0.92]
[1763470617710,18.82096,138.47,138.41,0.92]
[1763470617896,9.78882769,138.43,138.42,0.72]
[1763470618284,23.12096,138.47,138.42,0.72]
[1763470618485,9.78882769,138.44,138.42,0.72]
[1763470619017,9.78882769,138.46,138.42,0.72]
[1763470619215,2.14326753,138.45,138.42,0.72]
[1763470620308,2.14326753,138.46,138.42,0.72]
[1763470620801,9.78882769,138.48,138.43,2.14326753]
[1763470621105,2.14326753,138.45,138.42,18.84096]
[1763470621286,2.14326753,138.45,138.42,0.72]
[1763470621603,2.14326753,138.44,138.41,0.2]
[1763470621908,11.93209522,138.44,138.42,0.72]
[1763470623414,9.78882769,138.44,138.42,0.72]
[1763470624397,9.78882769,138.45,138.42,0.72]
[1763470625218,11.93209522,138.45,138.42,0.72]
[1763470626005,9.78882769,138.45,138.42,0.72]
[1763470626203,11.93209522,138.45,138.42,0.72]
[1763470626399,2.14326753,138.44,138.41,4.5]
[1763470626600,2.14326753,138.44,138.42,0.72]
[1763470626912,9.78882769,138.45,138.42,0.72]
[1763470627112,11.93209522,138.45,138.42,0.72]
[1763470627308,9.78882769,138.45,138.42,0.72]
[1763470627514,2.14326753,138.44,138.42,0.72]
[1763470627719,9.78882769,138.45,138.42,0.72]
[1763470627919,2.14326753,138.44,138.42,0.72]
[1763470628417,9.78882769,138.45,138.42,0.72]
[1763470628715,11.93209522,138.45,138.42,0.72]
[1763470629216,9.78882769,138.45,138.42,0.72]
[1763470629415,9.78882769,138.45,138.42,2.86326753]
[1763470629615,2.14326753,138.47,138.42,2.86326753]
[1763470629793,2.14326753,138.47,138.43,0.72]
[1763470629794,11.93209522,138.47,138.43,0.72]
[1763470629993,9.78882769,138.46,138.43,0.72]
[1763470630188,2.14326753,138.44,138.41,0.2]
[1763470630606,2.14326753,138.46,138.41,2.34326753]
[1763470630819,9.78882769,138.45,138.41,2.34326753]
[1763470631000,9.78882769,138.45,138.42,0.72]
[1763470631316,9.78882769,138.46,138.42,2.86326753]
[1763470631518,9.78882769,138.46,138.42,0.72]
[1763470631702,9.78882769,138.46,138.43,0.72]
[1763470633311,9.78882769,138.47,138.43,2.86326753]
[1763470633503,10.50882769,138.47,138.43,0.72]
[1763470633708,2.14326753,138.45,138.44,0.69]
[1763470633903,9.78882769,138.47,138.44,0.69]
[1763470635107,2.14326753,138.46,138.41,0.2]
[1763470635318,10.50882769,138.47,138.42,0.69]
[1763470635521,2.14326753,138.45,138.42,0.69]
[1763470635724,10.50882769,138.47,138.42,0.69]
[1763470636104,2.14326753,138.45,138.42,0.69]
[1763470636502,10.50882769,138.47,138.42,0.69]
[1763470636701,18.12096,138.44,138.41,0.2]
[1763470636911,2.14326753,138.43,138.41,0.2]
[1763470637211,9.78882769,138.43,138.41,0.89]
[1763470637710,11.93209522,138.43,138.41,0.89]
[1763470639001,9.78882769,138.43,138.41,0.89]
[1763470639314,9.78882769,138.43,138.41,0.2]
[1763470639502,11.93209522,138.43,138.41,0.2]
[1763470639820,11.93209522,138.42,138.41,0.2]
[1763470640039,9.78882769,138.42,138.41,0.2]
[1763470640721,2.0,138.48,138.41,0.2]
[1763470640722,18.78096,138.48,138.41,3.02326753]
[1763470640911,18.78096,138.48,138.42,2.14326753]
[1763470640912,20.92422753,138.48,138.42,2.14326753]
[1763470641110,11.93209522,138.47,138.43,0.68]
[1763470641495,10.44882769,138.47,138.43,0.68]
[1763470641702,2.14326753,138.48,138.43,2.82326753]
[1763470641898,9.78882769,138.47,138.43,2.82326753]
[1763470642103,9.78882769,138.47,138.44,0.68]
[1763470643230,11.93209522,138.47,138.44,0.68]
[1763470643813,9.78882769,138.47,138.44,0.68]
[1763470644528,11.93209522,138.47,138.44,0.68]
[1763470644727,9.78882769,138.47,138.44,0.68]
[1763470645113,11.93209522,138.47,138.44,0.68]
[1763470645314,12.59209522,138.47,138.44,0.68]
[1763470646646,9.78882769,138.45,138.42,0.68]
[1763470650731,11.93209522,138.46,138.42,0.68]
[1763470651822,12.59209522,138.46,138.42,0.68]
[1763470652134,18.12096,138.47,138.42,0.68]
[1763470652324,11.93209522,138.47,138.42,0.68]
[1763470652526,2.14326753,138.46,138.42,0.68]
[1763470654231,9.78882769,138.42,138.41,0.2]
[1763470654421,11.93209522,138.42,138.41,0.2]
[1763470654619,30.71305522,138.42,138.41,0.2]
[1763470655747,12.59209522,138.42,138.41,0.2]
[1763470656046,30.71305522,138.42,138.41,0.2]
[1763470656829,28.56978769,138.42,138.41,0.2]
[1763470657019,31.92563313,138.42,138.41,0.2]
[1763470657430,28.56978769,138.42,138.41,0.2]
[1763470657634,31.92563313,138.42,138.41,0.2]
[1763470658452,9.78882769,138.39,138.36,0.2]
[1763470658632,18.12096,138.4,138.36,0.2]
[1763470658633,13.14467313,138.37,138.36,0.2]
[1763470660629,13.80467313,138.37,138.36,0.2]
[1763470661719,31.92563313,138.37,138.36,0.2]
[1763470665518,28.56978769,138.37,138.36,0.2]
[1763470665719,31.92563313,138.37,138.36,0.2]
[1763470667146,9.78882769,138.36,138.35,0.2]
[1763470667326,13.14467313,138.36,138.35,0.2]
[1763470667740,13.81467313,138.36,138.35,0.2]
[1763470670651,9.78882769,138.36,138.35,0.2]
[1763470670851,13.81467313,138.36,138.35,0.2]
[1763470673957,27.90978769,138.34,138.33,0.2]
[1763470674148,35.56563313,138.34,138.33,0.2]
[1763470674334,36.23563313,138.34,138.33,0.2]
[1763470677840,54.35659313,138.34,138.33,0.2]
[1763470678736,31.26563313,138.34,138.33,0.2]
[1763470678958,31.93563313,138.34,138.33,0.2]
[1763470679159,31.26563313,138.34,138.33,0.2]
[1763470679532,13.14467313,138.34,138.33,0.2]
[1763470680352,13.14467313,138.34,138.33,0.89]
[1763470680862,9.78882769,138.34,138.33,0.89]
[1763470681456,9.78882769,138.34,138.33,0.2]
[1763470681666,13.14467313,138.34,138.33,0.2]
[1763470681960,9.78882769,138.34,138.33,0.89]
[1763470682161,13.14467313,138.34,138.33,0.2]
[1763470682658,13.81467313,138.34,138.33,0.2]
[1763470682845,18.11467313,138.34,138.33,0.2]
[1763470683461,13.14467313,138.34,138.33,0.2]
[1763470684041,13.14467313,138.34,138.33,0.89]
[1763470685940,13.14467313,138.34,138.33,0.2]
[1763470688085,8.34882769,138.34,138.33,0.89]
[1763470688378,3.35584544,138.39,138.33,4.24584544]
[1763470688539,3.35584544,138.39,138.34,4.3]
[1763470689870,0.67,138.4,138.34,4.3]
[1763470690057,103.37,138.41,138.35,18.12096]
[1763470690263,13.14467313,138.4,138.35,18.12096]
[1763470690774,13.81467313,138.4,138.34,4.3]
[1763470690974,13.81467313,138.4,138.34,25.77680544]
[1763470691344,3.35584544,138.4,138.35,3.35584544]
[1763470691562,9.78882769,138.39,138.34,25.77680544]
[1763470692845,9.78882769,138.39,138.35,3.35584544]
[1763470693155,9.78882769,138.39,138.34,25.77680544]
[1763470693353,0.65,138.39,138.34,25.77680544]
[1763470693573,3.35584544,138.39,138.34,25.77680544]
[1763470693872,9.78882769,138.38,138.34,25.77680544]
[1763470694365,9.78882769,138.38,138.34,7.65584544]
[1763470694557,9.78882769,138.39,138.35,3.35584544]
[1763470694744,10.43882769,138.39,138.34,7.65584544]
[1763470695150,13.79467313,138.39,138.34,7.65584544]
[1763470696961,9.78882769,138.39,138.34,7.65584544]
[1763470697164,9.78882769,138.39,138.35,3.35584544]
[1763470698558,10.43882769,138.39,138.34,7.65584544]
[1763470699066,9.78882769,138.39,138.34,7.65584544]
[1763470699986,9.78882769,138.39,138.35,3.35584544]
[1763470700359,102.7,138.42,138.34,4.3]
[1763470700360,9.78882769,138.42,138.37,3.35584544]
[1763470700683,9.78882769,138.42,138.38,4.3]
[1763470701053,9.78882769,138.42,138.38,7.65584544]
[1763470701768,0.67,138.41,138.38,4.3]
[1763470701972,4.02584544,138.42,138.38,4.3]
[1763470703069,13.14467313,138.4,138.38,4.3]
[1763470703473,13.81467313,138.4,138.38,4.3]
[1763470703780,13.81467313,138.39,138.38,4.3]
[1763470704161,9.78882769,138.38,138.33,3.55584544]
[1763470704359,9.78882769,138.38,138.34,4.3]
[1763470704987,9.78882769,138.38,138.34,7.65584544]
[1763470706684,9.78882769,138.38,138.35,3.35584544]
[1763470708773,10.45882769,138.39,138.35,3.35584544]
[1763470708774,9.78882769,138.39,138.35,3.35584544]
[1763470709590,10.45882769,138.39,138.35,3.35584544]
[1763470709886,4.02584544,138.38,138.34,4.3]
[1763470710275,0.67,138.37,138.34,4.3]
[1763470714487,0.67,138.37,138.35,4.3]
[1763470714488,9.78882769,138.36,138.35,4.3]
[1763470714690,9.78882769,138.38,138.35,4.3]
[1763470714871,13.81467313,138.38,138.35,4.3]
[1763470715096,0.67,138.37,138.35,4.3]
[1763470716486,9.78882769,138.36,138.35,4.3]
[1763470716878,10.45882769,138.36,138.35,4.3]
[1763470720874,12.60724069,138.36,138.35,4.3]
[1763470721876,12.60724069,138.36,138.33,0.2]
[1763470721877,27.90978769,138.34,138.33,0.2]
[1763470722093,30.05820069,138.34,138.33,0.2]
[1763470722396,30.73820069,138.34,138.33,0.2]
[1763470725301,9.78882769,138.34,138.33,0.2]
[1763470726778,9.78882769,138.35,138.33,0.2]
[1763470727015,9.78882769,138.35,138.34,4.3]
[1763470728814,9.78882769,138.36,138.34,4.3]
[1763470728994,10.46882769,138.36,138.34,4.3]
[1763470729305,12.61724069,138.36,138.34,4.3]
[1763470729692,0.68,138.35,138.34,4.3]
[1763470729905,11.93724069,138.36,138.34,4.3]
[1763470730390,0.68,138.35,138.34,4.3]
[1763470731794,10.46882769,138.35,138.34,4.3]
[1763470732279,9.78882769,138.35,138.34,4.3]
[1763470732486,10.46882769,138.35,138.34,4.3]
[1763470735610,18.12096,138.36,138.34,4.3]
[1763470736211,18.80096,138.36,138.34,4.3]
[1763470739004,9.78882769,138.36,138.34,4.3]
[1763470739909,9.78882769,138.38,138.34,4.3]
[1763470740130,10.46882769,138.38,138.34,4.3]
[1763470740712,9.78882769,138.38,138.34,6.448413]
[1763470740890,18.12096,138.39,138.35,2.148413]
[1763470741079,10.46882769,138.39,138.36,4.3]
[1763470742101,9.78882769,138.4,138.36,4.3]
[1763470742300,10.46882769,138.4,138.36,4.3]
[1763470742512,9.78882769,138.41,138.36,6.448413]
[1763470742699,9.78882769,138.4,138.36,6.448413]
[1763470743105,9.78882769,138.41,138.37,2.148413]
[1763470743306,9.78882769,138.42,138.37,2.148413]
[1763470744108,10.46882769,138.42,138.37,2.148413]
[1763470744310,9.78882769,138.42,138.37,2.148413]
[1763470744496,10.46882769,138.42,138.37,2.148413]
[1763470745093,2.148413,138.43,138.38,2.148413]
[1763470745327,11.93724069,138.43,138.39,4.3]
[1763470745620,12.61724069,138.43,138.39,4.3]
[1763470745791,10.46882769,138.43,138.39,4.3]
[1763470746389,0.68,138.45,138.39,6.448413]
[1763470746594,2.828413,138.45,138.39,6.448413]
[1763470747123,9.78882769,138.43,138.39,6.448413]
[1763470747420,11.93724069,138.41,138.33,6.1993034]
[1763470747629,9.78882769,138.39,138.35,2.148413]
[1763470747919,9.78882769,138.39,138.34,6.448413]
[1763470748118,36.24192,138.43,138.38,2.148413]
[1763470748119,2.148413,138.43,138.38,2.148413]
[1763470748298,2.828413,138.44,138.39,4.3]
[1763470748497,9.78882769,138.43,138.39,4.3]
[1763470748712,10.46882769,138.43,138.39,4.3]
[1763470750716,0.68,138.42,138.39,4.3]
[1763470750918,2.828413,138.42,138.39,4.3]
[1763470751302,0.68,138.41,138.39,4.3]
[1763470752027,2.828413,138.43,138.39,4.3]
[1763470752227,2.148413,138.43,138.39,4.3]
[1763470752412,0.72,138.42,138.39,4.3]
[1763470754826,0.72,138.42,138.38,2.148413]
[1763470755030,0.72,138.42,138.39,4.3]
[1763470756136,9.78882769,138.41,138.39,4.3]
[1763470756517,10.50882769,138.41,138.39,4.3]
[1763470756730,10.50882769,138.41,138.4,4.3]
[1763470756731,2.148413,138.41,138.4,4.3]
[1763470756921,20.269373,138.41,138.4,4.3]
[1763470757322,30.77820069,138.41,138.38,4.3]
[1763470757527,9.78882769,138.39,138.38,4.3]
[1763470758243,10.50882769,138.39,138.38,4.3]
[1763470758636,9.78882769,138.39,138.38,4.3]
[1763470760534,10.48882769,138.39,138.38,4.3]
[1763470761137,9.78882769,138.39,138.38,4.3]
[1763470762141,10.48882769,138.39,138.38,4.3]
[1763470763114,0.7,138.39,138.38,4.3]
[1763470764146,9.78882769,138.42,138.38,6.448413]
[1763470764314,0.7,138.4,138.38,6.448413]
[1763470765151,0.7,138.4,138.38,4.3]
[1763470766627,0.7,138.4,138.38,6.448413]
[1763470769338,10.48882769,138.42,138.38,6.448413]
[1763470769540,0.7,138.41,138.38,6.448413]
[1763470771150,0.7,138.41,138.38,4.3]
[1763470771338,0.7,138.41,138.38,6.448413]
[1763470772842,9.78882769,138.43,138.4,2.148413]
[1763470773029,0.7,138.42,138.39,6.448413]
[1763470773433,0.7,138.44,138.4,2.148413]
[1763470773742,0.7,138.43,138.4,2.148413]
[1763470774249,7.36972109,138.49,138.42,2.148413]
[1763470774425,9.78882769,138.46,138.42,2.148413]
[1763470774936,0.7,138.45,138.4,18.12096]
[1763470775239,11.93724069,138.44,138.39,2.148413]
[1763470775442,18.82096,138.45,138.4,4.3]
[1763470775632,2.148413,138.42,138.4,4.3]
[1763470776044,0.7,138.41,138.4,4.3]
[1763470778830,0.7,138.44,138.4,7.6526871]
[1763470779031,10.48882769,138.44,138.4,3.3526871]
[1763470779234,10.48882769,138.44,138.41,4.3]
[1763470779548,0.7,138.43,138.41,4.3]
[1763470779851,0.7,138.43,138.41,7.6526871]
[1763470782424,0.7,138.43,138.41,4.3]
[1763470782626,0.67,138.43,138.41,4.3]
[1763470784123,0.67,138.43,138.41,7.6526871]
[1763470786645,0.67,138.44,138.41,7.6526871]
[1763470786853,0.67,138.44,138.42,3.3526871]
[1763470787853,0.67,138.44,138.41,7.6526871]
[1763470790054,9.78882769,138.47,138.42,3.3526871]
[1763470790248,0.67,138.46,138.42,3.3526871]
[1763470791352,10.45882769,138.47,138.44,3.3526871]
[1763470791538,0.67,138.52,138.46,3.3526871]
[1763470791883,0.67,138.54,138.48,18.12096]
[1763470792028,0.2,138.56,138.52,3.3526871]
[1763470792226,0.2,138.56,138.55,3.3526871]
[1763470793938,0.2,138.56,138.55,7.6526871]
[1763470794863,0.2,138.56,138.55,4.3]
[1763470795064,0.2,138.56,138.55,7.6526871]
[1763470795263,0.2,138.56,138.55,4.3]
[1763470795441,0.2,138.56,138.55,7.6526871]
[1763470795858,0.2,138.56,138.55,4.3]
[1763470796056,0.2,138.56,138.55,7.6526871]
[1763470797758,0.2,138.56,138.55,4.3]
[1763470797955,0.2,138.56,138.55,7.6526871]
[1763470798752,0.2,138.56,138.55,4.3]
[1763470798967,0.2,138.56,138.55,7.6526871]
[1763470799768,0.2,138.56,138.55,4.3]
[1763470800077,0.87,138.56,138.55,4.3]
[1763470800248,0.2,138.56,138.55,4.3]
[1763470800456,0.2,138.56,138.55,7.6526871]
[1763470801859,0.87,138.56,138.55,3.3526871]
[1763470802063,0.87,138.56,138.55,4.3]
[1763470804776,0.87,138.56,138.52,18.12096]
[1763470804969,0.67,138.55,138.53,7.6526871]
[1763470805856,0.67,138.55,138.53,4.3]
[1763470806061,0.67,138.55,138.5,18.12096]
[1763470806370,0.67,138.55,138.52,3.3526871]
[1763470806756,0.67,138.55,138.51,7.6526871]
[1763470806959,4.0226871,138.55,138.51,4.3]
[1763470807176,4.0226871,138.55,138.44,15.64]
[1763470807372,0.67,138.54,138.5,3.3526871]
[1763470807566,0.67,138.54,138.51,4.3]
[1763470808382,0.67,138.54,138.52,4.3]
[1763470808884,4.0226871,138.54,138.52,4.3]
[1763470809269,0.67,138.53,138.52,4.3]
[1763470811074,3.5526871,138.56,138.52,4.3]
[1763470811075,10.45882769,138.55,138.52,4.3]
[1763470811477,0.67,138.54,138.52,4.3]
[1763470811793,0.87,138.56,138.52,4.3]
[1763470811965,0.2,138.56,138.52,4.3]
[1763470812165,0.71,138.55,138.52,7.6526871]
[1763470813790,0.71,138.55,138.47,39.53018712]
[1763470813970,4.0626871,138.55,138.5,3.3526871]
[1763470814485,0.71,138.54,138.5,3.3526871]
[1763470814790,0.71,138.54,138.48,4.3]
[1763470814978,0.71,138.54,138.5,3.3526871]
[1763470815889,0.71,138.54,138.51,3.3526871]
[1763470816085,0.71,138.54,138.52,4.3]
[1763470819989,4.0626871,138.54,138.53,4.3]
[1763470820581,31.97247479,138.54,138.49,3.3526871]
[1763470820790,4.0626871,138.53,138.45,18.12096]
[1763470821086,4.0626871,138.53,138.44,15.64]
[1763470821087,3.3526871,138.49,138.46,4.3]
[1763470821394,27.90978769,138.51,138.46,4.3]
[1763470821395,31.26247479,138.51,138.46,4.3]
[1763470821597,0.71,138.5,138.46,4.3]
[1763470821971,4.0626871,138.5,138.46,4.3]
[1763470822174,3.3526871,138.49,138.46,4.3]
[1763470822391,4.0626871,138.48,138.44,15.64]
[1763470822574,3.3526871,138.47,138.45,4.3]
[1763470822890,0.71,138.51,138.46,3.3526871]
[1763470823098,0.71,138.51,138.48,3.3526871]
[1763470823296,102.9,138.56,138.44,15.64]
[1763470823297,0.71,138.54,138.5,3.3526871]
[1763470823477,0.71,138.54,138.51,7.6526871]
[1763470824687,0.71,138.54,138.52,3.3526871]
[1763470824883,0.71,138.54,138.51,7.6526871]
[1763470826408,13.14151479,138.53,138.44,6.72163798]
[1763470826703,3.3526871,138.53,138.48,3.3526871]
[1763470826898,0.71,138.52,138.49,4.3]
[1763470827105,0.71,138.52,138.5,4.3]
[1763470829503,4.0626871,138.52,138.5,4.3]
[1763470829813,0.71,138.51,138.5,4.3]
[1763470829986,4.0626871,138.51,138.5,4.3]
[1763470830181,4.0626871,138.51,138.46,3.3526871]
[1763470830382,0.71,138.5,138.47,4.3]
[1763470831681,3.3526871,138.54,138.49,3.3526871]
[1763470831882,10.49882769,138.54,138.5,3.3526871]
[1763470832114,0.71,138.53,138.51,4.3]
[1763470834590,4.0626871,138.53,138.51,4.3]
[1763470834781,3.3526871,138.52,138.51,4.3]
[1763470834983,13.85151479,138.52,138.5,4.3]
[1763470835183,0.71,138.51,138.5,4.3]
[1763470835399,4.0626871,138.51,138.5,4.3]
[1763470835907,0.71,138.51,138.5,4.3]
[1763470836106,10.49882769,138.51,138.5,4.3]
[1763470836308,0.71,138.51,138.47,4.3]
[1763470836485,18.83096,138.52,138.47,7.6526871]
[1763470836687,0.71,138.51,138.47,8.3526871]
[1763470837219,18.12096,138.52,138.48,4.0526871]
[1763470837510,18.83096,138.52,138.48,4.0526871]
[1763470837685,0.71,138.52,138.49,0.7]
[1763470837889,0.71,138.52,138.47,5.0]
[1763470838107,0.71,138.52,138.48,3.3526871]
[1763470838301,0.71,138.52,138.48,4.0526871]
[1763470838713,0.71,138.52,138.47,7.6526871]
[1763470838904,0.71,138.52,138.47,7.14315464]
[1763470839301,0.71,138.52,138.48,2.84315464]
[1763470839702,0.71,138.52,138.48,2.14315464]
[1763470840310,0.71,138.52,138.48,2.84315464]
[1763470840911,0.71,138.52,138.48,2.14315464]
[1763470841319,0.71,138.52,138.48,2.84315464]
[1763470841516,0.71,138.54,138.5,2.14315464]
[1763470841717,121.53096,138.55,138.51,6.44315464]
[1763470841902,0.71,138.54,138.51,6.44315464]
[1763470842093,0.71,138.54,138.51,4.3]
[1763470843804,12.64198233,138.54,138.52,4.3]
[1763470844119,2.14315464,138.53,138.52,4.3]
[1763470844295,0.66,138.53,138.52,4.3]
[1763470846618,12.59198233,138.53,138.52,4.3]
[1763470846818,27.90978769,138.52,138.45,8.14245804]
[1763470847023,2.14315464,138.51,138.46,4.3]
[1763470847197,2.80315464,138.51,138.46,4.3]
[1763470847514,2.80315464,138.5,138.46,4.3]
[1763470847892,2.80315464,138.49,138.46,4.3]
[1763470848406,0.66,138.48,138.46,4.3]
[1763470848801,0.66,138.5,138.46,6.44315464]
[1763470849111,0.66,138.49,138.46,6.44315464]
[1763470849620,0.66,138.5,138.46,7.10315464]
[1763470850119,0.66,138.5,138.46,2.80315464]
[1763470850423,0.66,138.5,138.47,4.3]
[1763470851192,0.66,138.5,138.47,6.44315464]
[1763470851398,30.05294233,138.52,138.47,7.10315464]
[1763470851399,0.66,138.51,138.47,7.10315464]
[1763470851603,0.66,138.51,138.47,4.3]
[1763470852622,2.14315464,138.5,138.47,4.3]
[1763470853004,2.80315464,138.5,138.47,4.3]
[1763470853208,27.90978769,138.52,138.48,0.66]
[1763470853209,2.80315464,138.52,138.48,0.66]
[1763470853822,0.66,138.51,138.47,4.3]
[1763470854029,2.80315464,138.51,138.47,4.3]
[1763470854207,0.66,138.53,138.48,0.66]
[1763470854409,2.14315464,138.52,138.48,0.66]
[1763470854827,2.80315464,138.52,138.48,0.66]
[1763470855321,2.14315464,138.52,138.48,0.66]
[1763470855521,2.80315464,138.51,138.47,4.3]
[1763470855927,2.80315464,138.51,138.47,4.96]
[1763470856110,2.80315464,138.52,138.48,0.66]
[1763470856428,2.80315464,138.52,138.47,4.3]
[1763470856604,0.66,138.51,138.47,4.96]
[1763470860015,0.66,138.5,138.48,4.3]
[1763470860332,2.80315464,138.5,138.48,4.3]
[1763470860540,2.14315464,138.5,138.48,4.3]
[1763470860718,2.80315464,138.49,138.42,6.6593034]
[1763470860908,2.14315464,138.47,138.43,4.3]
[1763470861310,0.66,138.47,138.43,4.96]
[1763470862914,0.66,138.47,138.43,4.3]
[1763470863318,2.80315464,138.47,138.43,4.96]
[1763470864416,0.66,138.47,138.43,4.96]
[1763470864937,0.66,138.46,138.43,4.3]
[1763470865145,0.66,138.46,138.43,6.44315464]
[1763470865317,0.66,138.46,138.43,7.10315464]
[1763470866015,103.36,138.5,138.45,2.14315464]
[1763470866223,2.80315464,138.5,138.46,4.3]
[1763470866410,0.66,138.49,138.43,5.9993034]
[1763470866611,18.12096,138.41,138.37,0.1]
[1763470866811,30.05294233,138.38,138.37,0.1]
[1763470867239,30.62294233,138.38,138.37,0.1]
[1763470867765,28.47978769,138.38,138.37,0.1]
[1763470867951,30.62294233,138.38,138.37,0.1]
[1763470868450,30.62294233,138.38,138.28,0.2]
[1763470868451,12.50198233,138.38,138.28,0.2]
[1763470868773,30.05294233,138.29,138.28,0.2]
[1763470868913,33.51352215,138.29,138.28,0.2]
[1763470869147,33.51352215,138.29,138.23,3.32]
[1763470869148,9.78882769,138.28,138.23,3.32]
[1763470869343,15.96256215,138.28,138.23,3.32]
[1763470870262,15.96256215,138.28,138.21,0.2]
[1763470870460,27.90978769,138.26,138.22,4.32]
[1763470870666,33.51352215,138.26,138.22,4.32]
[1763470870859,33.51352215,138.26,138.21,0.2]
[1763470870860,18.12096,138.22,138.21,0.2]
[1763470871067,33.51352215,138.22,138.21,0.2]
[1763470871754,18.69096,138.27,138.21,0.86]
[1763470871970,5.60373446,138.23,138.21,0.2]
[1763470872180,5.60373446,138.23,138.21,0.85]
[1763470872374,9.78882769,138.26,138.21,0.85]
[1763470872753,5.60373446,138.24,138.21,0.85]
[1763470872947,5.60373446,138.3,138.22,0.65]
[1763470872948,0.57,138.3,138.22,0.65]
[1763470873153,9.78882769,138.31,138.23,4.32]
[1763470873359,5.60373446,138.29,138.23,4.32]
[1763470873556,5.60373446,138.28,138.24,0.65]
[1763470873965,5.60373446,138.28,138.25,4.32]
[1763470874455,5.60373446,138.28,138.25,4.97]
[1763470874689,5.60373446,138.27,138.23,0.65]
[1763470874875,5.60373446,138.26,138.24,4.34]
[1763470875190,5.60373446,138.26,138.25,4.34]
[1763470875480,27.90978769,138.3,138.25,4.32]
[1763470875646,5.60373446,138.27,138.23,0.65]
[1763470875853,5.60373446,138.27,138.24,4.32]
[1763470876365,5.60373446,138.27,138.24,4.97]
[1763470876767,9.78882769,138.24,138.13,0.1]
[1763470876968,13.20746892,138.25,138.13,0.1]
[1763470876969,5.60373446,138.14,138.13,0.1]
[1763470877266,5.60373446,138.14,138.13,0.75]
[1763470877773,5.60373446,138.15,138.13,0.1]
[1763470877971,5.60373446,138.14,138.13,0.1]
[1763470878297,15.39256215,138.14,138.13,0.1]
[1763470879487,5.60373446,138.14,138.13,0.1]
[1763470879979,9.78882769,138.16,138.13,0.1]
[1763470880308,5.60373446,138.14,138.13,0.1]
[1763470881079,15.39256215,138.14,138.13,0.1]
[1763470881391,15.76256215,138.14,138.13,0.1]
[1763470881688,15.39256215,138.14,138.13,0.1]
[1763470882051,9.78882769,138.14,138.13,0.1]
[1763470882251,5.60373446,138.14,138.13,0.1]
[1763470882457,0.37,138.16,138.13,0.1]
[1763470882822,0.37,138.15,138.13,0.1]
[1763470883096,18.49096,138.17,138.13,0.1]
[1763470883263,5.60373446,138.15,138.13,0.1]
[1763470883458,5.60373446,138.14,138.13,0.1]